bitfinex/quotes_BTCUSD_20220120
["timestamp","ask_amount","ask_price","bid_price","bid_amount"]
[1642707453805,0.01576,42962.0,42960.0,0.00266283]
[1642707454005,0.00129379,42961.0,42960.0,0.00266283]
[1642707454405,0.00129379,42961.0,42960.0,0.00226876]
[1642707454856,0.03436437,42961.0,42960.0,0.00226876]
[1642707455055,0.04636437,42961.0,42960.0,0.00226876]
[1642707456458,0.58436437,42961.0,42960.0,0.00226876]
[1642707456658,0.91734494,42961.0,42960.0,0.00226876]
[1642707457058,0.92774494,42961.0,42960.0,0.00226876]
[1642707457257,0.92734494,42961.0,42960.0,0.00226876]
[1642707457658,0.92774494,42961.0,42960.0,0.00226876]
[1642707458258,0.91734494,42961.0,42960.0,0.00226876]
[1642707458703,0.91774494,42961.0,42960.0,0.00226876]
[1642707458904,0.41774494,42961.0,42960.0,0.00226876]
[1642707459102,0.37834494,42961.0,42960.0,0.00226876]
[1642707459301,0.54576437,42961.0,42960.0,0.00226876]
[1642707459504,0.54616437,42961.0,42960.0,0.00226876]
[1642707459704,0.54447058,42961.0,42960.0,0.00226876]
[1642707459905,0.54407058,42961.0,42960.0,0.00226876]
[1642707460104,1.27407058,42961.0,42960.0,0.00226876]
[1642707460304,0.26307058,42961.0,42960.0,0.00226876]
[1642707461104,0.30107058,42961.0,42960.0,0.00226876]
[1642707462207,0.6124718,42961.0,42960.0,0.00226876]
[1642707462466,0.5744718,42961.0,42960.0,0.00226876]
[1642707462969,0.26307058,42961.0,42960.0,0.00226876]
[1642707463171,0.30207058,42961.0,42960.0,0.00226876]
[1642707463966,0.62269743,42961.0,42960.0,0.00226876]
[1642707464367,0.58369743,42961.0,42960.0,0.00226876]
[1642707464766,0.26307058,42961.0,42960.0,0.00226876]
[1642707465271,0.5961153,42961.0,42960.0,0.00226876]
[1642707466302,0.5581153,42961.0,42960.0,0.00226876]
[1642707467206,0.5941153,42961.0,42960.0,0.00226876]
[1642707468308,0.9581153,42961.0,42960.0,0.00226876]
[1642707468704,0.9585153,42961.0,42960.0,0.00226876]
[1642707468903,1.0585153,42961.0,42960.0,0.00226876]
[1642707469108,1.08074332,42961.0,42960.0,0.00226876]
[1642707469304,1.08114332,42961.0,42960.0,0.00226876]
[1642707470151,1.38114332,42961.0,42960.0,0.00226876]
[1642707470551,1.06014332,42961.0,42960.0,0.00226876]
[1642707470952,1.05974332,42961.0,42960.0,0.00226876]
[1642707471150,1.08314332,42961.0,42960.0,0.00226876]
[1642707471349,1.08274332,42961.0,42960.0,0.00226876]
[1642707471549,1.08314332,42961.0,42960.0,0.00226876]
[1642707472155,0.58314332,42961.0,42960.0,0.00226876]
[1642707472351,0.55974332,42961.0,42960.0,0.00226876]
[1642707472850,0.56014332,42961.0,42960.0,0.00226876]
[1642707473051,0.57714332,42961.0,42960.0,0.00226876]
[1642707473251,0.2820986,42961.0,42960.0,0.00226876]
[1642707473805,0.2816986,42961.0,42960.0,0.00226876]
[1642707474007,0.2820986,42961.0,42960.0,0.00220443]
[1642707474406,0.2646986,42961.0,42960.0,0.00220443]
[1642707475007,0.26347058,42961.0,42960.0,0.00220443]
[1642707475206,0.28787058,42961.0,42960.0,0.00220443]
[1642707475406,0.28747058,42961.0,42960.0,0.00220443]
[1642707476508,0.57781862,42961.0,42960.0,0.00220443]
[1642707476908,0.57741862,42961.0,42960.0,0.00220443]
[1642707477108,0.59241862,42961.0,42960.0,0.00220443]
[1642707477550,0.27807058,42961.0,42960.0,0.00220443]
[1642707477951,0.27887058,42961.0,42960.0,0.00220443]
[1642707478350,0.26347058,42961.0,42960.0,0.00220443]
[1642707478550,0.26307058,42961.0,42960.0,0.00220443]
[1642707479150,0.28947058,42961.0,42960.0,0.00220443]
[1642707479351,0.61150266,42961.0,42960.0,0.00220443]
[1642707479753,0.60529848,42961.0,42960.0,0.00220443]
[1642707479952,0.28947058,42961.0,42960.0,0.00220443]
[1642707480353,0.58235335,42961.0,42960.0,0.00220443]
[1642707480554,0.57830951,42961.0,42960.0,0.00220443]
[1642707480855,0.26347058,42961.0,42960.0,0.00220443]
[1642707481108,0.28687058,42961.0,42960.0,0.00220443]
[1642707481516,0.28687058,42961.0,42958.0,0.00182449]
[1642707481517,0.4,42959.0,42940.0,0.35]
[1642707481717,0.4,42959.0,42949.0,0.00011421]
[1642707481718,0.47868893,42958.0,42949.0,0.00011421]
[1642707482016,0.00124585,42950.0,42949.0,0.00011421]
[1642707482217,0.00124585,42950.0,42939.0,0.0022]
[1642707482218,0.04764585,42950.0,42939.0,0.0022]
[1642707482412,0.00122151,42944.0,42939.0,0.0022]
[1642707482811,0.29593276,42945.0,42939.0,0.0022]
[1642707483011,0.29553276,42945.0,42939.0,0.0022]
[1642707483211,0.011,42944.0,42939.0,0.0022]
[1642707483612,0.011,42944.0,42940.0,0.26483045]
[1642707483817,0.00778721,42944.0,42943.0,1.3348825]
[1642707484013,0.00778721,42944.0,42943.0,1.9131135]
[1642707484212,0.00778721,42944.0,42943.0,1.67852323]
[1642707484413,0.5,42958.0,42943.0,1.67852323]
[1642707484611,0.22797756,42953.0,42944.0,0.00011424]
[1642707484860,0.22797756,42953.0,42946.0,0.05821]
[1642707485261,0.22797756,42953.0,42947.0,0.00022347]
[1642707485561,0.32157386,42957.0,42947.0,0.00022347]
[1642707485761,0.00119288,42954.0,42947.0,0.00113435]
[1642707486062,0.00119288,42954.0,42948.0,0.00020628]
[1642707486863,0.18315351,42955.0,42948.0,0.00020628]
[1642707487062,0.00109045,42954.0,42950.0,0.058209]
[1642707487461,0.00109045,42954.0,42951.0,0.00015471]
[1642707488062,0.18315351,42955.0,42951.0,0.00015471]
[1642707488263,0.29523602,42954.0,42951.0,0.00015471]
[1642707488913,0.18424397,42955.0,42951.0,0.00015471]
[1642707489120,0.18315351,42955.0,42951.0,0.00015471]
[1642707489315,0.18315351,42955.0,42951.0,0.00915471]
[1642707489316,0.30381435,42954.0,42951.0,0.00915471]
[1642707489516,0.013,42954.0,42951.0,0.009]
[1642707489715,0.013,42954.0,42952.0,0.00013752]
[1642707490616,0.18355351,42955.0,42952.0,0.00013752]
[1642707490617,0.00123753,42953.0,42952.0,0.00013752]
[1642707491015,0.00123753,42953.0,42951.0,0.00015471]
[1642707491218,0.31483332,42952.0,42951.0,0.00015471]
[1642707491415,0.61029379,42952.0,42951.0,0.00015471]
[1642707491620,0.38882432,42952.0,42951.0,0.00015471]
[1642707491816,0.39006102,42952.0,42951.0,0.00015471]
[1642707492015,0.00126334,42951.0,42950.0,0.0007191]
[1642707492216,0.0004,42947.0,42941.0,0.00262628]
[1642707492466,0.0004,42947.0,42941.0,0.06084728]
[1642707492662,6.876e-05,42946.0,42942.0,0.23865092]
[1642707492861,6.876e-05,42946.0,42943.0,0.378231]
[1642707493064,6.876e-05,42946.0,42943.0,0.523231]
[1642707493263,6.876e-05,42946.0,42944.0,0.27100199]
[1642707493463,6.876e-05,42946.0,42945.0,1.378231]
[1642707493863,6.876e-05,42946.0,42945.0,1.478231]
[1642707494766,6.876e-05,42946.0,42945.0,1.524631]
[1642707495164,6.876e-05,42946.0,42945.0,1.587631]
[1642707495764,6.876e-05,42946.0,42945.0,1.787631]
[1642707496712,6.876e-05,42946.0,42945.0,1.764631]
[1642707497311,6.876e-05,42946.0,42945.0,1.777631]
[1642707498511,6.876e-05,42946.0,42945.0,1.764631]
[1642707499312,6.876e-05,42946.0,42945.0,1.779631]
[1642707500556,6.876e-05,42946.0,42945.0,1.764631]
[1642707501360,6.876e-05,42946.0,42945.0,1.778631]
[1642707501958,6.876e-05,42946.0,42945.0,0.778631]
[1642707502164,6.876e-05,42946.0,42945.0,0.014]
[1642707502562,6.876e-05,42946.0,42943.0,0.00097674]
[1642707503361,6.876e-05,42946.0,42943.0,0.01697674]
[1642707503604,6.876e-05,42946.0,42943.0,0.016072]
[1642707503810,6.876e-05,42946.0,42943.0,0.016]
[1642707504206,6.876e-05,42946.0,42943.0,0.016072]
[1642707504403,6.876e-05,42946.0,42943.0,7.2e-05]
[1642707504605,6.876e-05,42946.0,42942.0,0.00097677]
[1642707504809,6.876e-05,42946.0,42942.0,7.2e-05]
[1642707505005,6.876e-05,42946.0,42942.0,0.00090477]
[1642707505304,6.876e-05,42946.0,42942.0,0.01097677]
[1642707505305,0.00906876,42946.0,42942.0,0.01097677]
[1642707505707,0.34984907,42946.0,42942.0,0.01097677]
[1642707505906,0.34984907,42946.0,42942.0,0.010072]
[1642707506106,0.34984907,42946.0,42942.0,0.01097679]
[1642707506405,0.00906876,42946.0,42942.0,0.01097679]
[1642707506605,6.876e-05,42946.0,42942.0,0.00097679]
[1642707507208,0.01606876,42946.0,42942.0,0.006072]
[1642707507461,0.01606876,42946.0,42942.0,0.00697679]
[1642707508461,6.876e-05,42946.0,42942.0,7.2e-05]
[1642707508657,6.876e-05,42946.0,42942.0,0.00097679]
[1642707508958,6.876e-05,42946.0,42942.0,0.00090479]
[1642707509158,6.876e-05,42946.0,42942.0,0.05912479]
[1642707509359,0.04206876,42946.0,42942.0,0.06619679]
[1642707509659,0.04206876,42946.0,42942.0,0.065292]
[1642707509859,0.04206876,42946.0,42942.0,0.06619679]
[1642707510065,0.04199293,42946.0,42942.0,0.06619679]
[1642707510262,0.04199293,42946.0,42942.0,0.00797679]
[1642707510464,0.04199293,42946.0,42942.0,0.00097679]
[1642707510664,0.21668998,42949.0,42942.0,0.00097679]
[1642707510866,0.21668998,42949.0,42942.0,7.2e-05]
[1642707511105,0.21668998,42949.0,42942.0,0.00090479]
[1642707511306,0.26268998,42949.0,42942.0,0.00790479]
[1642707511507,0.26268998,42949.0,42942.0,0.00797679]
[1642707511805,0.5978621,42949.0,42942.0,0.00797679]
[1642707512005,0.26268998,42949.0,42942.0,0.007072]
[1642707512207,0.26268998,42949.0,42943.0,0.00090474]
[1642707512406,0.26268998,42949.0,42943.0,0.00097674]
[1642707512611,0.21668998,42949.0,42943.0,0.00097674]
[1642707512806,0.21668998,42949.0,42943.0,0.00090474]
[1642707513205,0.21668998,42949.0,42943.0,0.005]
[1642707513206,0.26568998,42949.0,42943.0,0.005]
[1642707513405,0.26568998,42949.0,42944.0,0.00090472]
[1642707513606,0.26568998,42949.0,42944.0,0.00097672]
[1642707514407,0.26568998,42949.0,42944.0,7.2e-05]
[1642707514606,0.00124903,42949.0,42944.0,0.00090471]
[1642707514867,0.2975,42951.0,42945.0,0.0464]
[1642707515064,0.23119285,42954.0,42946.0,0.65]
[1642707515065,0.22199285,42954.0,42946.0,0.65]
[1642707515271,0.027,42949.0,42946.0,0.95608284]
[1642707515463,0.027,42949.0,42946.0,0.800072]
[1642707515663,0.027,42949.0,42946.0,0.850072]
[1642707515864,0.027,42949.0,42948.0,0.50090459]
[1642707516666,6.876e-05,42950.0,42948.0,0.50090459]
[1642707516865,6.876e-05,42950.0,42948.0,0.49]
[1642707517265,0.03706876,42950.0,42948.0,0.498]
[1642707518267,0.03706876,42950.0,42949.0,1.16449097]
[1642707518472,0.03272006,42950.0,42949.0,2.05837379]
[1642707518720,0.22159289,42954.0,42949.0,1.73912197]
[1642707518934,0.22159289,42954.0,42950.0,0.378303]
[1642707519119,0.2204,42954.0,42951.0,0.0464]
[1642707519320,0.22159293,42954.0,42952.0,0.66868219]
[1642707519520,0.22159293,42954.0,42953.0,1.1464]
[1642707519719,0.22159293,42954.0,42953.0,1.524631]
[1642707519920,0.22166169,42954.0,42953.0,1.624631]
[1642707520323,0.22046876,42954.0,42953.0,1.824631]
[1642707521323,0.22046876,42954.0,42953.0,1.836631]
[1642707521923,0.22046876,42954.0,42953.0,0.736631]
[1642707522374,0.22046876,42954.0,42953.0,0.536631]
[1642707522574,0.22046876,42954.0,42953.0,0.4964]
[1642707523375,0.22046876,42954.0,42953.0,0.5054]
[1642707524474,0.22046876,42954.0,42953.0,0.4964]
[1642707525277,0.22046876,42954.0,42953.0,0.5054]
[1642707525474,0.22046876,42954.0,42953.0,0.1554]
[1642707525680,0.22046876,42954.0,42953.0,0.0554]
[1642707526523,0.22046876,42954.0,42953.0,0.009]
[1642707526712,0.22046876,42954.0,42948.0,0.00090455]
[1642707526713,0.22046876,42954.0,42949.0,7.2e-05]
[1642707526912,0.21968876,42954.0,42949.0,7.2e-05]
[1642707527312,0.23068876,42954.0,42949.0,0.009]
[1642707527513,0.23068876,42954.0,42949.0,0.009072]
[1642707527713,0.23188169,42954.0,42949.0,0.009]
[1642707528113,0.23188169,42954.0,42949.0,0.009072]
[1642707528713,0.21968876,42954.0,42949.0,7.2e-05]
[1642707528913,0.22088169,42954.0,42948.0,0.00090457]
[1642707529316,0.24188169,42954.0,42952.0,0.25257947]
[1642707529515,0.24188169,42954.0,42952.0,0.35257947]
[1642707529714,0.24188169,42954.0,42953.0,0.8964]
[1642707529964,0.24068876,42954.0,42953.0,0.8964]
[1642707530169,0.24068876,42954.0,42953.0,0.9964]
[1642707530562,0.24068876,42954.0,42953.0,1.374631]
[1642707530763,0.21968876,42954.0,42953.0,1.374631]
[1642707531363,0.21968876,42954.0,42953.0,1.382631]
[1642707532066,0.21968876,42954.0,42953.0,1.582631]
[1642707532272,0.0011929,42956.0,42955.0,1.678231]
[1642707532273,2.9e-06,42956.0,42955.0,1.678231]
[1642707532571,0.0004,42970.0,42963.0,0.00121136]
[1642707532768,0.4667798,42977.0,42964.0,0.0464]
[1642707532965,0.1185237,42976.0,42964.0,0.0464]
[1642707533167,0.1185237,42976.0,42968.0,0.29463096]
[1642707533366,0.00036099,42975.0,42969.0,0.0464]
[1642707533812,0.00067356,42972.0,42969.0,0.0464]
[1642707534213,0.00029223,42971.0,42969.0,0.0464]
[1642707534612,0.00027504,42970.0,42969.0,0.0464]
[1642707535412,0.00027504,42970.0,42969.0,0.4534]
[1642707536616,0.00027504,42970.0,42969.0,0.4464]
[1642707537114,0.216131,42976.0,42970.0,0.3]
[1642707537360,0.00108985,42972.0,42969.0,0.0524]
[1642707538361,8.595e-05,42975.0,42969.0,0.0524]
[1642707538564,0.0008,42970.0,42969.0,0.0464]
[1642707539162,0.00661716,42973.0,42969.0,0.0464]
[1642707539363,0.05,42970.0,42969.0,0.4514]
[1642707539766,0.05,42970.0,42969.0,0.5014]
[1642707540164,0.05,42970.0,42969.0,0.1014]
[1642707540363,0.05,42970.0,42969.0,0.4014]
[1642707540565,0.05,42970.0,42969.0,0.3514]
[1642707540765,0.00661716,42973.0,42969.0,0.0964]
[1642707541117,0.00786721,42973.0,42965.0,0.05]
[1642707541421,0.0004,42969.0,42966.0,6.876e-05]
[1642707541615,0.0008,42969.0,42966.0,6.876e-05]
[1642707541814,0.0004,42964.0,42963.0,0.00012033]
[1642707542016,0.0004,42964.0,42962.0,0.00013752]
[1642707542216,0.0008,42964.0,42960.0,0.0001719]
[1642707542614,0.0004,42964.0,42960.0,0.0001719]
[1642707542914,0.0004,42964.0,42956.0,0.00024066]
[1642707543113,0.0004,42964.0,42956.0,0.05024066]
[1642707543312,0.0068,42964.0,42956.0,0.06124066]
[1642707543515,0.0068,42964.0,42957.0,0.00022347]
[1642707543715,0.0064,42964.0,42957.0,0.00022347]
[1642707543918,0.0068,42964.0,42957.0,0.00022347]
[1642707544215,0.0064,42964.0,42957.0,0.00022347]
[1642707544416,0.0068,42964.0,42957.0,0.00022347]
[1642707544615,0.19992762,42963.0,42957.0,0.00022347]
[1642707545464,0.21492762,42963.0,42957.0,0.00922347]
[1642707545865,0.21492762,42963.0,42958.0,0.00020628]
[1642707545866,0.015,42963.0,42958.0,0.00020628]
[1642707546275,0.2977,42971.0,42958.0,0.00020628]
[1642707546276,0.15804681,42973.0,42964.0,1.2996]
[1642707546475,0.15804681,42973.0,42972.0,0.00122361]
[1642707546668,0.00126125,42974.0,42972.0,0.42585461]
[1642707546868,6.876e-05,42974.0,42972.0,0.04762361]
[1642707547067,0.00115826,42974.0,42972.0,0.19762361]
[1642707547268,0.00115826,42974.0,42972.0,0.1964]
[1642707547467,0.00115826,42974.0,42972.0,0.2054]
[1642707548068,6.876e-05,42974.0,42972.0,0.1054]
[1642707548468,6.876e-05,42974.0,42972.0,0.0554]
[1642707548713,6.876e-05,42974.0,42972.0,0.0464]
[1642707549412,6.876e-05,42974.0,42972.0,0.0554]
[1642707549815,6.876e-05,42974.0,42973.0,1.7818887]
[1642707550112,0.03504625,42985.0,42973.0,1.7818887]
[1642707550113,0.0004,42981.0,42974.0,0.8]
[1642707550311,0.0004,42981.0,42975.0,0.0464]
[1642707550312,0.0002,42981.0,42975.0,0.0464]
[1642707550514,6.876e-05,42978.0,42976.0,0.3504738]
[1642707550713,6.876e-05,42978.0,42977.0,0.7964]
[1642707550912,0.0001719,42984.0,42977.0,1.08959529]
[1642707551115,0.0001719,42984.0,42978.0,0.058169]
[1642707551312,0.00015471,42983.0,42979.0,0.31265524]
[1642707551513,0.00015471,42983.0,42979.0,0.50905524]
[1642707551815,0.11850044,42987.0,42979.0,0.50905524]
[1642707551816,0.00013752,42982.0,42979.0,0.50905524]
[1642707552013,0.00013752,42982.0,42979.0,0.1964]
[1642707552215,0.23,42984.0,42979.0,0.1964]
[1642707552216,0.00012033,42981.0,42979.0,0.1964]
[1642707552656,0.00010314,42980.0,42979.0,0.1964]
[1642707552861,0.00010314,42980.0,42979.0,0.0964]
[1642707553267,0.00010314,42980.0,42979.0,2.12479681]
[1642707553458,0.00010314,42980.0,42979.0,2.13403638]
[1642707553660,0.00010314,42980.0,42979.0,2.23403638]
[1642707554057,0.23,42984.0,42981.0,0.25775131]
[1642707554258,0.23,42984.0,42982.0,2.27393858]
[1642707554462,0.23,42984.0,42983.0,1.68723753]
[1642707554658,0.23,42984.0,42983.0,2.21186853]
[1642707554858,0.23006876,42984.0,42983.0,2.26186853]
[1642707555059,0.23006876,42984.0,42983.0,2.32002053]
[1642707555459,0.23006876,42984.0,42983.0,2.33502053]
[1642707555958,0.23006876,42984.0,42983.0,1.23502053]
[1642707556409,0.23006876,42984.0,42983.0,0.847383]
[1642707556611,0.23006876,42984.0,42983.0,0.774231]
[1642707556813,0.23006876,42984.0,42983.0,0.574631]
[1642707557510,0.23006876,42984.0,42983.0,0.586631]
[1642707558711,0.23006876,42984.0,42983.0,0.574631]
[1642707559312,0.23006876,42984.0,42983.0,0.524631]
[1642707559511,0.22506876,42984.0,42983.0,0.535631]
[1642707560662,0.22506876,42984.0,42983.0,0.524631]
[1642707560861,0.22506876,42984.0,42983.0,0.424631]
[1642707561061,0.22506876,42984.0,42983.0,0.524631]
[1642707561460,0.22506876,42984.0,42983.0,0.536631]
[1642707561662,0.22506876,42984.0,42983.0,0.586631]
[1642707562265,0.22506876,42984.0,42983.0,0.836631]
[1642707562461,0.22253348,42984.0,42983.0,0.836631]
[1642707562661,0.22253348,42984.0,42983.0,0.774631]
[1642707562862,0.22253348,42984.0,42983.0,0.824631]
[1642707563061,0.22253348,42984.0,42983.0,0.574631]
[1642707563467,0.22253348,42984.0,42983.0,0.585631]
[1642707564506,0.22253348,42984.0,42983.0,0.435631]
[1642707564707,0.22253348,42984.0,42983.0,0.424631]
[1642707565207,0.22253348,42984.0,42982.0,0.05]
[1642707565407,0.22253348,42984.0,42983.0,0.011]
[1642707566208,0.22253348,42984.0,42983.0,0.311]
[1642707566407,0.22253348,42984.0,42983.0,0.011]
[1642707566609,0.22253348,42984.0,42977.0,0.54042759]
[1642707566808,0.22253348,42984.0,42978.0,0.378231]
[1642707567009,0.22253348,42984.0,42980.0,0.2]
[1642707567210,0.22253348,42984.0,42982.0,0.2]
[1642707567469,0.22253348,42984.0,42983.0,0.93389171]
[1642707567672,0.22253348,42984.0,42983.0,0.724631]
[1642707568068,0.22253348,42984.0,42983.0,0.974631]
[1642707568669,0.22253348,42984.0,42983.0,0.724631]
[1642707569469,0.22253348,42984.0,42983.0,0.736631]
[1642707569670,0.22253348,42984.0,42983.0,0.73785095]
[1642707569869,0.22253348,42984.0,42983.0,0.78785095]
[1642707570070,0.22253348,42984.0,42983.0,1.13785095]
[1642707570471,0.22253348,42984.0,42983.0,1.136631]
[1642707570770,0.22253348,42984.0,42983.0,1.124631]
[1642707571216,2.53e-06,42986.0,42985.0,1.490156]
[1642707571424,0.0047694,42992.0,42985.0,2.05553215]
[1642707571425,0.00020715,42991.0,42985.0,2.05553215]
[1642707571615,0.0047694,42992.0,42987.0,0.2]
[1642707571811,0.0047694,42992.0,42989.0,0.2]
[1642707571812,0.00032748,42991.0,42989.0,0.2]
[1642707572012,0.00032748,42991.0,42990.0,1.574631]
[1642707572212,0.00020715,42992.0,42990.0,1.86298177]
[1642707572412,0.00020715,42998.0,42990.0,1.96298177]
[1642707572710,0.00044781,42998.0,42992.0,0.2]
[1642707572917,0.00024066,42998.0,42993.0,0.0464]
[1642707573111,0.00044781,42998.0,42993.0,0.0464]
[1642707573512,0.00044781,42998.0,42993.0,0.0564]
[1642707574711,0.00044781,42998.0,42993.0,0.0464]
[1642707574972,0.00044781,42998.0,42994.0,0.2]
[1642707575165,0.00044781,42998.0,42995.0,0.2464]
[1642707575365,0.00024066,42998.0,42996.0,0.0464]
[1642707575571,0.00024066,42998.0,42997.0,0.0464]
[1642707575765,0.00044781,42998.0,42997.0,0.0464]
[1642707576169,0.00024066,42998.0,42997.0,0.0464]
[1642707577167,0.23524066,42999.0,42997.0,0.0464]
[1642707577369,0.23524066,42999.0,42994.0,0.05]
[1642707577568,0.23544781,42999.0,42997.0,0.006]
[1642707577769,0.23524066,42999.0,42984.0,0.3441]
[1642707577970,0.23524066,42999.0,42984.0,0.0464]
[1642707578173,0.23544781,42999.0,42985.0,0.00022347]
[1642707578368,0.19964282,42993.0,42985.0,0.29027698]
[1642707578809,0.19964282,42993.0,42986.0,0.00020628]
[1642707579407,0.00119247,42991.0,42986.0,0.01120628]
[1642707579806,0.00119247,42991.0,42987.0,0.00018909]
[1642707580508,0.00020715,42992.0,42987.0,0.00018909]
[1642707580712,0.00119247,42991.0,42987.0,0.00018909]
[1642707581311,0.00119247,42991.0,42988.0,0.378231]
[1642707581511,0.00119247,42991.0,42988.0,0.528231]
[1642707581709,0.00020715,42998.0,42989.0,0.00015471]
[1642707581911,0.00119247,42991.0,42989.0,0.00015471]
[1642707582765,0.20714844,42996.0,42989.0,0.00015471]
[1642707582960,0.00119245,42992.0,42989.0,0.00015471]
[1642707583159,0.00119245,42992.0,42988.0,0.05]
[1642707583160,0.00119245,42992.0,42990.0,0.34142846]
[1642707583561,0.00119245,42992.0,42991.0,0.40012033]
[1642707583960,0.00020715,42995.0,42991.0,0.35012033]
[1642707584162,0.20714844,42996.0,42991.0,0.40012033]
[1642707584163,0.00119244,42994.0,42991.0,0.40012033]
[1642707584361,0.00119244,42994.0,42992.0,0.00010314]
[1642707585165,0.00020715,42995.0,42992.0,0.00010314]
[1642707585364,0.00119242,42995.0,42992.0,0.00010314]
[1642707585665,0.00119242,42995.0,42992.0,0.00510314]
[1642707586141,0.00119242,42995.0,42993.0,8.595e-05]
[1642707586341,0.20735559,42996.0,42993.0,8.595e-05]
[1642707586545,0.20714844,42996.0,42993.0,8.595e-05]
[1642707586741,0.20834085,42996.0,42993.0,8.595e-05]
[1642707587342,0.20834085,42996.0,42992.0,0.00010314]
[1642707587543,0.20714844,42996.0,42993.0,0.003]
[1642707587844,0.20714844,42996.0,42994.0,6.876e-05]
[1642707589046,0.55127593,42995.0,42994.0,6.876e-05]
[1642707589244,0.55127593,42995.0,42981.0,0.1]
[1642707589245,0.55127593,42995.0,42986.0,0.00020628]
[1642707589447,0.0004,42992.0,42982.0,0.05027504]
[1642707589645,0.0468,42992.0,42982.0,0.00027504]
[1642707589868,0.0472,42992.0,42983.0,0.00025785]
[1642707590070,0.0468,42992.0,42983.0,0.25592287]
[1642707590269,0.00119249,42989.0,42983.0,0.30592287]
[1642707590470,0.00780753,42989.0,42984.0,0.00024066]
[1642707591273,0.00661504,42989.0,42984.0,0.00024066]
[1642707591475,0.00780754,42989.0,42984.0,0.00524066]
[1642707591875,0.00780754,42989.0,42985.0,0.00022347]
[1642707592075,0.00801469,42989.0,42985.0,0.00022347]
[1642707592277,0.00139965,42989.0,42987.0,0.26614908]
[1642707592480,0.00020715,42991.0,42987.0,0.31614908]
[1642707592678,0.0004,42992.0,42987.0,0.31614908]
[1642707592679,0.23119249,42989.0,42988.0,0.9501719]
[1642707592877,0.23119249,42989.0,42988.0,1.3284029]
[1642707593076,0.23119249,42989.0,42988.0,1.66955806]
[1642707593276,0.23119249,42989.0,42988.0,2.18203118]
[1642707593476,0.23119249,42989.0,42988.0,2.19203118]
[1642707593723,0.23,42989.0,42988.0,2.19203118]
[1642707594717,0.23,42989.0,42988.0,2.18203118]
[1642707595518,0.23,42989.0,42988.0,2.19303118]
[1642707596323,0.23,42989.0,42988.0,2.24303118]
[1642707597356,0.23,42989.0,42988.0,2.23203118]
[1642707597557,0.23,42989.0,42988.0,2.24303118]
[1642707598657,0.17665017,42998.0,42989.0,1.078231]
[1642707598862,0.31100964,42999.0,42989.0,0.75815]
[1642707599160,0.31100964,42999.0,42990.0,0.00013752]
[1642707599558,0.30624066,42999.0,42990.0,0.00013752]
[1642707599759,0.30624066,42999.0,42994.0,0.24856662]
[1642707599958,0.00524066,42999.0,42994.0,0.24856662]
[1642707601615,0.00524066,42999.0,42994.0,0.25156662]
[1642707601810,0.00524066,42999.0,42994.0,0.30156662]
[1642707602011,0.00524066,42999.0,42994.0,0.45156662]
[1642707602212,0.00643303,42999.0,42995.0,0.29933785]
[1642707602618,0.23643303,42999.0,42995.0,0.29933785]
[1642707602812,0.22643303,42999.0,42995.0,0.29933785]
[1642707603612,0.22643303,42999.0,42995.0,0.50633785]
[1642707603813,0.22643303,42999.0,42995.0,0.59191934]
[1642707604218,0.0008,43004.0,42995.0,0.202]
[1642707604515,8.595e-05,43003.0,42995.0,0.002]
[1642707604717,0.31938589,43003.0,42995.0,0.002]
[1642707604966,0.0004,43000.0,42993.0,0.00053418]
[1642707605160,0.0004,42999.0,42993.0,0.00053418]
[1642707605361,0.0004,42999.0,42994.0,6.876e-05]
[1642707606262,0.0008,42999.0,42994.0,6.876e-05]
[1642707607061,0.0011923,43001.0,42994.0,6.876e-05]
[1642707607262,0.0011923,43001.0,42994.0,0.00013752]
[1642707607660,0.0011923,43001.0,42994.0,0.00313752]
[1642707608060,0.11845313,43002.0,42995.0,0.00012033]
[1642707608262,0.00113223,43001.0,42995.0,0.00012033]
[1642707609310,0.11845313,43002.0,42985.0,1.06884932]
[1642707609311,0.11845313,43002.0,42994.0,0.00013752]
[1642707609514,0.00133926,43001.0,42994.0,0.00013752]
[1642707609711,0.00113224,43001.0,42993.0,0.00079388]
[1642707609911,0.00113224,43001.0,42994.0,0.00013752]
[1642707609912,0.11845313,43000.0,42994.0,0.00013752]
[1642707610111,0.11958537,43001.0,42994.0,0.00013752]
[1642707610316,0.30127183,43000.0,42994.0,0.00013752]
[1642707610514,0.29436785,42999.0,42994.0,0.00013752]
[1642707610712,0.29945182,43000.0,42994.0,0.00013752]
[1642707610913,0.11845313,42998.0,42993.0,0.00079389]
[1642707611112,0.11855664,42999.0,42994.0,0.00013752]
[1642707611312,0.11845313,42997.0,42994.0,0.00013752]
[1642707611516,0.11345313,42998.0,42994.0,0.00013752]
[1642707611714,0.11345313,42996.0,42994.0,0.00013752]
[1642707611913,0.00010351,42999.0,42994.0,0.00013752]
[1642707612117,0.0011923,43001.0,42994.0,0.00013752]
[1642707612766,0.00010351,43003.0,42994.0,0.00013752]
[1642707612964,0.00119232,43001.0,42994.0,0.00013752]
[1642707613564,0.00119232,43001.0,42994.0,0.00213752]
[1642707614065,0.23,43001.0,42995.0,0.00012033]
[1642707614267,0.23119232,43001.0,42995.0,0.00012033]
[1642707615264,0.23,43001.0,42994.0,0.00013752]
[1642707615465,0.23119233,43001.0,42994.0,0.00013752]
[1642707615665,0.23119233,43001.0,42993.0,0.00095711]
[1642707615864,0.23119233,43001.0,42994.0,0.00013752]
[1642707616511,0.23,43001.0,42994.0,0.00013752]
[1642707616712,0.23119232,43001.0,42994.0,0.00013752]
[1642707616917,0.23119232,43001.0,42978.0,0.59164938]
[1642707616918,0.0012183,42998.0,42978.0,0.59164938]
[1642707617114,0.00125737,42984.0,42975.0,0.59164938]
[1642707617318,0.00125737,42984.0,42974.0,0.59164938]
[1642707617319,0.00127439,42978.0,42974.0,0.59164938]
[1642707617513,0.00127439,42978.0,42968.0,0.89064938]
[1642707617712,0.00127439,42978.0,42975.0,0.02332661]
[1642707618110,0.00127439,42978.0,42976.0,0.00030942]
[1642707619612,0.05727439,42978.0,42976.0,0.00030942]
[1642707619864,0.056,42978.0,42976.0,0.00030942]
[1642707620461,0.056,42978.0,42975.0,0.00094921]
[1642707620660,0.056,42978.0,42976.0,0.00030942]
[1642707620861,0.30759227,42979.0,42976.0,0.00030942]
[1642707621065,0.2989552,42977.0,42976.0,0.00030942]
[1642707621474,0.00129214,42978.0,42976.0,0.00030942]
[1642707621663,0.06,42977.0,42975.0,0.00094921]
[1642707621861,0.06,42977.0,42976.0,0.35030942]
[1642707622065,0.8,42975.0,42953.0,0.0464]
[1642707622265,0.8,42975.0,42945.0,0.0022]
[1642707622266,0.00120323,42962.0,42939.0,1.26260206]
[1642707622474,0.00120323,42962.0,42928.0,0.02523319]
[1642707622475,0.5158,42940.0,42928.0,0.02523319]